Cogmind - Beta 13 @@@ ROGUE MODE // 2024.04.09 @ 02:36:55 Player: Zaros426 Result: Destroyed by YI-UF0 with YI-UF0's Doublenader Performance ------------- Evolutions (0) 0 Regions Visited (4) 800 Robots Destroyed (11) 55 Value Destroyed (124) 124 Prototype IDs (6) 120 Alien Tech Used (0) 0 Bonus (500) 500 TOTAL SCORE: 1599 Bonus ------- Follower Combat Kills 200 Aligned with FarCom 300 Cogmind --------- Core Integrity 0/250 Matter 285/300 Energy 160/160 System Corruption 0% Temperature Cool (0) Movement Rolling (95) Ox1 Location -9/Mines Parts ------- > --- POWER (1) -------- Light Nuclear Core > --- PROPULSION (2) --- Wheel Wheel > --- UTILITY (2) ------ Medium Storage Unit Signal Interpreter > --- WEAPON (2) ------- Guided Plasma Cannon Heavy Assault Rifle > --- INVENTORY (10) --- Improved Terrain Scanner Terrain Scan Processor Light Armor Plating Trap Reconfigurator XL Autogun Array Heavy Explosive Trap Heavy Explosive Trap Peak State ------------ > --- POWER ------------ Light Nuclear Core > --- PROPULSION ------- Wheel Wheel > --- UTILITY ---------- Medium Storage Unit Signal Interpreter > --- WEAPON ----------- Guided Plasma Cannon Heavy Assault Rifle > --- INVENTORY -------- Structural Scanner Improved Terrain Scanner Terrain Scan Processor Light Armor Plating Trap Reconfigurator Heavy Assault Rifle XL Autogun Array [Rating: 22] Favorites ----------- Power Light Nuclear Core Engine Ion Engine Power Core Light Nuclear Core Propulsion Wheel Wheel Wheel Flight Unit Flight Unit Utility Signal Interpreter Device Improved Terrain Scanner Storage Medium Storage Unit Processor Signal Interpreter Weapon Light Assault Rifle Energy Gun Medium Laser Energy Cannon Guided Plasma Cannon Ballistic Gun Light Assault Rifle Build | -11 -10 -10 -10 -9 ------- Run | Yrd Mat Min Exi Min Slots Evolved . | . . . . . Power . | . . . . . Propulsion . | . . . . . Utility . | . . . . . Weapon . | . . . . . Parts Attached 28 | 6 6 12 3 1 Power 5 | 1 1 2 . 1 Engine 3 | 1 1 1 . . Core 2 | . . 1 . 1 Reactor . | . . . . . Propulsion 5 | 2 . 3 . . Treads . | . . . . . Leg . | . . . . . Wheel 4 | 2 . 2 . . Hover . | . . . . . Flight 1 | . . 1 . . Utility 8 | 2 2 2 2 . Device 2 | 1 . . 1 . Storage 5 | 1 1 2 1 . Processor 1 | . 1 . . . Hackware . | . . . . . Protection . | . . . . . Artifact . | . . . . . Weapon 10 | 1 3 5 1 . Energy Gun 1 | . 1 . . . Energy Cannon 1 | . . . 1 . Ballistic Gun 8 | 1 2 5 . . Ballistic Cannon . | . . . . . Launcher . | . . . . . Special Weapon . | . . . . . Impact Weapon . | . . . . . Slashing Weapon . | . . . . . Piercing Weapon . | . . . . . Special Melee Weapon . | . . . . . Unidentified Prototypes 2 | . . . 2 . Parts Lost 5 | . . 4 . 1 Power 2 | . . 1 . 1 Propulsion 2 | . . 2 . . Utility . | . . . . . Weapon 1 | . . 1 . . Highest Loss Streak 4 | . . 4 . 1 To Critical Strikes . | . . . . . Average Slot Usage (%) 96 | . 99 91 100 99 Engine 3 | . 14 2 . . Core 9 | . . 10 14 13 Wheel 25 | . 28 21 28 28 Flight 1 | . . 3 . . Device 2 | . 11 . . . Storage 12 | . 14 11 14 14 Processor 11 | . 2 14 14 14 Energy Cannon 3 | . . . 5 14 Ballistic Gun 24 | . 25 28 22 14 Naked Turns . | . . . . . Heaviest Build 28 | 13 18 21 28 28 Greatest Support 32 | 32 32 32 20 20 Greatest Overweight (x) 1 | 1 . 1 1 1 Average Overweight (x) . | . . . 1 1 Largest Inventory Capacity 25 | 8 10 25 10 10 Average Capacity 9 | 7 9 9 9 10 Most Carried 10 | 2 9 10 10 10 Average Carried 7 | . 6 7 9 9 Final Capacity 10 | 8 10 10 10 10 Final Carried 10 | 2 9 7 10 10 Class Distribution -------------------- 64% | Scavenger-Mutant 35% | Mutant Dominant Class ---------------- Mutant | -10/Materials Scavenger-Mutant | -10/Mines Scavenger-Mutant | -10/Exiles Scavenger-Mutant | -9/Mines Resources | -11 -10 -10 -10 -9 ----------- Run | Yrd Mat Min Exi Min Matter Collected 798 | 311 127 340 20 . Remotely . | . . . . . Salvage Created 348 | 92 111 145 . . Parts 28 | 10 12 6 . . Haulers Intercepted . | . . . . . Recyclers Shooed . | . . . . . Parts Field Recycled . | . . . . . Retrieved Matter . | . . . . . Parts Self-Destructed . | . . . . . Prevented . | . . . . . Kills | -11 -10 -10 -10 -9 ------- Run | Yrd Mat Min Exi Min Combat Hostiles Destroyed 12 | . 4 8 . . Guns 12 | . 4 8 . . Classes Destroyed 7 | 1 3 3 . . Worker 1 | . . 1 . . Builder 1 | . . 1 . . Tunneler 4 | 4 . . . . Watcher 1 | . 1 . . . Swarmer 3 | . 3 . . . Grunt 1 | . 1 . . . Assembled 8 | . . 8 . . Best Kill Streak 8 | 2 2 8 . . Combat Bots Only 8 | . 2 8 . . Max Kills in Single Turn 2 | 1 1 2 . . Gunslinging 1 | . . 1 . . Exploded . | . . . . . Melee . | . . . . . Uniques/NPCs Destroyed . | . . . . . Combat | -11 -10 -10 -10 -9 -------- Run | Yrd Mat Min Exi Min Hostile Shots Fired 77 | . 27 48 . 2 Missed 20 | . 10 10 . . Damage Taken 756 | . 144 535 . 77 Core 256 | . 39 171 . 46 Absorbed by Shields . | . . . . . Core Remaining (%) 100 | 100 . . . . Volleys Fired 66 | 17 19 30 . . Largest 2 | 1 2 2 . . Hottest 70 | 20 70 40 . . Shots Fired 114 | 17 38 59 . . Gun 114 | 17 38 59 . . Cannon . | . . . . . Launcher . | . . . . . Special . | . . . . . Kinetic 104 | 17 28 59 . . Thermal 10 | . 10 . . . Explosive . | . . . . . Electromagnetic . | . . . . . Robot Hit Streak 10 | 10 5 7 . . Robot Miss Streak 4 | 2 4 2 . . Penetration Max . | . . . . . Secondary Targets 4 | . 1 3 . . Max Gunslinging Chain 1 | . 1 1 . . Shots Hit Robots 67 | 13 19 35 . . Core Hits 36 | 4 10 22 . . Critical Kills 1 | . . 1 . . Critical Parts Destroyed . | . . . . . Critical Strikes 1 | . . 1 . . Destroy 1 | . . 1 . . Melee Attacks . | . . . . . Impact . | . . . . . Slashing . | . . . . . Piercing . | . . . . . Sneak Attacks . | . . . . . Combat Hostiles . | . . . . . Follow-up Attacks . | . . . . . Damage Inflicted 668 | 159 170 339 . . Guns 668 | 159 170 339 . . Cannons . | . . . . . Explosions . | . . . . . Melee . | . . . . . Ramming . | . . . . . Kinetic 619 | 159 121 339 . . Thermal 49 | . 49 . . . Explosive . | . . . . . Electromagnetic . | . . . . . Impact . | . . . . . Slashing . | . . . . . Piercing . | . . . . . Highest Corruption . | . . . . . Average Corruption . | . . . . . Corruption Purged . | . . . . . Corruption Blocked . | . . . . . Overload Shots . | . . . . . Overflow Damage . | . . . . . Projectiles . | . . . . . Explosions . | . . . . . Melee . | . . . . . Knockbacks . | . . . . . Impact . | . . . . . Kinetic . | . . . . . Secondary . | . . . . . Self-Inflicted Damage . | . . . . . Shots . | . . . . . Rammed . | . . . . . Targets Rammed . | . . . . . Kicked . | . . . . . Crushed . | . . . . . Highest Temperature 80 | . 54 80 . . Average Temperature 22 | . 20 24 . . Received Heat Transfer 181 | . 12 169 . . Siege Activations . | . . . . . Robots Corrupted . | . . . . . Combat Hostiles . | . . . . . Parts Fried . | . . . . . Impact Corruptions . | . . . . . Robots Melted . | . . . . . Combat Hostiles . | . . . . . Parts Melted . | . . . . . Heat Transferred 148 | . 148 . . . Parts Sabotaged . | . . . . . Parts Stolen . | . . . . . Parts Stripped . | . . . . . Power Chain Reactions . | . . . . . Alert | -11 -10 -10 -10 -9 ------- Run | Yrd Mat Min Exi Min Peak Influence 142 | 20 136 142 . 15 Initial 52 | . 13 52 . . Average 52 | 7 98 51 . 7 Maximum Alert Level . | . . . . . Low Security (%) 100 | 100 100 100 . 100 Level 1 . | . . . . . Level 2 . | . . . . . Level 3 . | . . . . . Level 4 . | . . . . . Level 5 . | . . . . . High Security . | . . . . . Max Security . | . . . . . Squads Dispatched . | . . . . . Investigation . | . . . . . Extermination . | . . . . . Reinforcement . | . . . . . Assault . | . . . . . Garrison . | . . . . . Intercept . | . . . . . Searches Triggered . | . . . . . Construction Impeded . | . . . . . Haulers Reinforced . | . . . . . Active Scanning Responses . | . . . . . Cargo Convoy Interrupts . | . . . . . Stealth | -11 -10 -10 -10 -9 --------- Run | Yrd Mat Min Exi Min Distress Signals 1 | . . 1 . . Communications Jammed . | . . . . . Distress Signals . | . . . . . Times Spotted 21 | . 7 13 . 1 Peak Tracking Total 6 | . 3 6 . . Tactical Retreats . | . . . . . Traps | -11 -10 -10 -10 -9 ------- Run | Yrd Mat Min Exi Min Traps Triggered . | . . . . . Indirectly . | . . . . . Trap Hack Attempts . | . . . . . Triggered . | . . . . . Disarmed . | . . . . . Reprogrammed . | . . . . . Reused . | . . . . . Traps Extracted . | . . . . . Installed 1 | . . . . 1 Triggered . | . . . . . Most Traps Carried 2 | . . . . 2 Machines | -11 -10 -10 -10 -9 ---------- Run | Yrd Mat Min Exi Min Machines Disabled 1 | . . 1 . . Max in Single Turn . | . . . . . Machines Repaired . | . . . . . Machines Dismantled . | . . . . . Machines Sabotaged . | . . . . . Overloaded Fab Kills . | . . . . . Hacking | -11 -10 -10 -10 -9 --------- Run | Yrd Mat Min Exi Min Machines Accessed 6 | . 4 1 . 1 Terminals 5 | . 3 1 . 1 Fabricators . | . . . . . Repair Stations . | . . . . . Recycling Units 1 | . 1 . . . Scanalyzers . | . . . . . Garrison Access . | . . . . . Total Hacks 23 | . 14 4 . 5 Successful 16 | . 9 3 . 4 Failed 7 | . 5 1 . 1 Catastrophic . | . . . . . Database Lockouts . | . . . . . Manual 1 | . . . 1 . Terminals 22 | . 13 4 . 5 Fabricators . | . . . . . Repair Stations . | . . . . . Recycling Units 1 | . 1 . . . Scanalyzers . | . . . . . Garrison Access . | . . . . . Terminal Hacks 15 | . 8 3 . 4 Record 6 | . 2 1 . 3 Prototype ID Bank 2 | . 2 . . . Emergency Access Points 1 | . 1 . . . Locate Traps 1 | . 1 . . . Dispatch Records 1 | . . 1 . . Reinforcement Status 1 | . 1 . . . Hauler Manifests 1 | . 1 . . . Zone Layout 2 | . . 1 . 1 Fabricator Hacks . | . . . . . Repair Station Hacks . | . . . . . Recycling Unit Hacks 1 | . 1 . . . Report Inventory 1 | . 1 . . . Scanalyzer . | . . . . . Garrison Access Hacks . | . . . . . Unauthorized Hacks . | . . . . . Terminals . | . . . . . Fabricators . | . . . . . Repair Stations . | . . . . . Recycling Units . | . . . . . Scanalyzers . | . . . . . Garrison Access . | . . . . . Data Cores Recovered . | . . . . . Used . | . . . . . Hacking Detections 6 | . 4 1 . 1 Full Trace Events . | . . . . . Feedback Events . | . . . . . Feedback Blocked . | . . . . . Robot Schematics Acquired . | . . . . . Robots Built . | . . . . . Authchips . | . . . . . Time . | . . . . . Total Robot Build Rating . | . . . . . Part Schematics Acquired . | . . . . . Parts Built . | . . . . . Authchips . | . . . . . Time . | . . . . . Total Part Build Rating . | . . . . . Parts Repaired . | . . . . . Time . | . . . . . Parts Recycled . | . . . . . Recycled Matter . | . . . . . Retrieved Matter . | . . . . . Retrieved Components . | . . . . . Parts Scanalyzed . | . . . . . Part Schematics Acquired . | . . . . . Parts Damaged . | . . . . . Bothacking | -11 -10 -10 -10 -9 ------------ Run | Yrd Mat Min Exi Min Used RIF Installer . | . . . . . Robots Hacked . | . . . . . Non-combat . | . . . . . Combat . | . . . . . Robot Hacks Applied . | . . . . . Relay Couplers Released . | . . . . . Fabnet Peak Effective % . | . . . . . Robots Rewired . | . . . . . Allies Hacked . | . . . . . Hacks Repelled . | . . . . . Allies | -11 -10 -10 -10 -9 -------- Run | Yrd Mat Min Exi Min Total Allies 3 | . . 3 . . Largest Group 3 | . . 3 3 3 Highest-Rated Group 40 | . . 40 40 40 Highest-Rated Ally 16 | . . 16 16 16 Total Orders . | . . . . . Ally Attacks 36 | . . 36 . . Total Damage 394 | . . 394 . . Kills 6 | . . 6 . . Allies Corrupted . | . . . . . Allies Melted . | . . . . . Intel | -11 -10 -10 -10 -9 ------- Run | Yrd Mat Min Exi Min Robot Analysis Total . | . . . . . Derelict Logs Recovered 4 | . . 3 . 1 Drone Launches . | . . . . . Drone Recoveries . | . . . . . Exploration | -11 -10 -10 -10 -9 ------------- Run | Yrd Mat Min Exi Min Turns Passed 2162 | 117 359 875 560 251 Spaces Moved 1699 | 73 266 696 507 157 Core 36 | 4 . 32 . . Treads . | . . . . . Legs . | . . . . . Wheels 1563 | 69 266 564 507 157 Hover . | . . . . . Flight 100 | . . 100 . . Fastest Speed 40 | 50 100 40 95 95 Average Speed 91 | 98 100 83 95 95 Slowest Speed 120 | 100 100 120 95 95 Overloaded Moves . | . . . . . Propulsion Burnouts . | . . . . . Robots Hopped . | . . . . . Cave-ins Triggered . | . . . . . Exploration Rate (%) 39 | 4 37 97 43 18 Regions Visited 4 Branch Regions 3 Pre-discovered Areas 1 | . . 1 . . Known Exits Taken 3 | . 1 1 1 . Unknown Exits Taken 1 | 1 . . . . Scrap Searched 1 | . . 1 . . Spaces Dug . | . . . . . Terrain Destroyed . | . . . . . Melee . | . . . . . Projectile . | . . . . . AOE . | . . . . . Terrain Rammed . | . . . . . Walls Destroyed . | . . . . . Machines Disabled . | . . . . . Actions | -11 -10 -10 -10 -9 --------- Run | Yrd Mat Min Exi Min Total 2212 | 97 322 943 590 260 Wait 352 | . 22 181 55 94 Move 1695 | 72 265 695 506 157 Hop . | . . . . . Pick Up 37 | 2 8 10 13 4 Fast Attach 12 | 6 1 5 . . Attach 5 | . . 4 . 1 Detach 2 | . . 2 . . Swap 11 | . 5 3 3 . Drop 31 | . 2 13 13 3 Fire 66 | 17 19 30 . . Melee . | . . . . . Ram . | . . . . . Kick . | . . . . . Crush . | . . . . . Escape Stasis . | . . . . . Rewire . | . . . . . Trap 1 | . . . . 1 Miscellaneous . | . . . . . Route ------- -11/Scrapyard -10/Materials (discovered 2 exits: *Mat / *Min) -10/Mines (discovered 3 exits: *Mat x2 / *Exi) -10/Exiles -9/Mines History --------- Turn | Location | Event 13 | -11/Scrapyard | Discovered new exit (range 16) 118 | -11/Scrapyard | Entered Materials 304 | -10/Materials | Build established: Mutant 369 | -10/Materials | Discovered new exit (range 12) 416 | -10/Materials | Identified exit to Materials 472 | -10/Materials | Discovered new exit (range 6) 476 | -10/Materials | Identified exit to Mines 477 | -10/Materials | Entered Mines 531 | -10/Mines | Learned Materials terminal intel 545 | -10/Mines | Met a Derelict bent on vengeance 558 | -10/Mines | Assembled infested the area 599 | -10/Mines | Core integrity fell below 50% 640 | -10/Mines | Destroyed 8 combat bots 646 | -10/Mines | Lost 4 parts (1p2n1w) 651 | -10/Mines | Assisted by bots powering up and referring to "LRC-V3" 846 | -10/Mines | Learned Materials emergency access door positions 1026 | -10/Mines | Build established: Scavenger-Mutant 1097 | -10/Mines | Discovered exit to Materials (range 5) 1147 | -10/Mines | Core integrity fell below 20% 1170 | -10/Mines | Discovered exit to Materials (range 15) 1221 | -10/Mines | Learned location of Zion (-6) 1342 | -10/Mines | Deemed a non-threat by the Exiles lab entrance 1342 | -10/Mines | Discovered new exit (range 5) 1345 | -10/Mines | Identified exit to Exiles 1352 | -10/Mines | Entered Exiles 1352 | -10/Exiles | Accompanied by 3 allies 1382 | -10/Exiles | Discovered new exit (range 14) 1404 | -10/Exiles | Met 8R-AWN 1419 | -10/Exiles | Met EX-HEX 1461 | -10/Exiles | Met EX-BIN 1485 | -10/Exiles | Aligned with FarCom system 1486 | -10/Exiles | Given EX-Vault access code 1511 | -10/Exiles | Opened EX-Vault 1515 | -10/Exiles | Found Prototype Device 1520 | -10/Exiles | Identified Trap Reconfigurator 1556 | -10/Exiles | Warned to stay clear of 0b10 Research branches 1693 | -10/Exiles | Found Prototype Energy Cannon 1694 | -10/Exiles | Identified Gui. Plasma Cannon 1697 | -10/Exiles | Found Prototype Ballistic Gun 1894 | -10/Exiles | Identified exit to Mines 1912 | -10/Exiles | Stole three prototypes: Gui. Plasma Cannon, Trap Reconfigurator, XL Autogun Array 1912 | -10/Exiles | Entered Mines 1912 | -9/Mines | Accompanied by 3 allies 1927 | -9/Mines | Learned 2 Materials zone layouts 1945 | -9/Mines | Found a hidden stash of uninstalled traps 2056 | -9/Mines | Lost 3 allies 2163 | -9/Mines | Destroyed by YI-UF0 with YI-UF0's Doublenader Last Messages --------------- 02006_ U-05 Engineer lays Concrete. 02009_ Dropped Rigged Nuclear Core. 02009_ U-05 Engineer lays Concrete. 02010_ U-05 Engineer builds a Wall. 02015_ U-05 Engineer lays Concrete. 02019_ U-05 Engineer builds a Wall. 02020_ T-07 Excavator destroyed. 02020_ U-05 Engineer destroyed. 02020_ K-01 Serf destroyed. 02023_ Mercenary 1a destroyed. 02023_ Trooper 1a destroyed. 02025_ Trooper 1b destroyed. 02025_ Lgt. Nuclear Core destroyed. 02026_ Acquired Lgt. Nuclear Core. 02029_ The unstable cave ceiling collapses. 02055_ Acquired Heavy Explosive Trap. 02109_ Dropped Heavy Explosive Trap. 02109_ Installed Heavy Explosive Trap. 02117_ Acquired Heavy Explosive Trap. 02158_ YI-UF0 mumbles something. Map ----- +----------------------------------------------------+ | ??????????????????????? ??????????????????? | | ??????????????????????? ??????????????????? | | ??????????????????????# ??????????????????? | | ???????????????????#### ??????????????????? | | ?????????????????### # ###???????#???????? | | ?????????????????# ###?##? #???????? | | ????????????????## ## # #???????? | | ????????????????# #????????? | | ????????????????# ?????????? | | ????????????????# ??????????? | | ???????????????## # #???????????? | | ???????????????# = #????????????? | | ???????????????# # #?????????????? | | ???????????????## ?# g % ???????????????? | | ????????????????###?? ?#??????????????? | | ??????????????????### # #??????????????? | | ?????????????????? #??????????????? | | ???########??????# #??????????????? | | ???# #??????# #???????????????? | | ???# ######## % # ?????????????????? | | ???# ##?????????????????? | | ???# ##????????????????? | | ??## ######## #????????????????? | | ??#T #??????# #????????????????? | | ??##############?#*### ##????????????????? | | ?????####### ###@#??###?????????????????? | | ????## ## ^ #??????????????????????? | | ???## ####??????????????????????? | | ??## & #?????????????????????????? | | ??# & #?????????????????????????? | | ??## #### #?????????????????????????? | | ???####??#### ##????????????????????????? | | ???????###??## #????????????????????????? | | ??????## ##### #????????????????????????? | | ??????# # ##????????????????????????? | | ??????# ##?????????????????????????? | | ??????# #??????????????????????????? | | ??????## # #??????????????????????????? | | ???????#########??????????????????????????? | | ??????????????????????????????????????????? | | ??????????????????????????????????????????? | | ??????????????????????????????????????????? | | ??????????????????????????????????????????? | | ??????????????????????????????????????????? | | | | | | | | | | | | | +----------------------------------------------------+ Best States ------------- Heat Dissipation 25 Energy Generation 14 Energy Capacity 250 Matter Stores 300 Matter Capacity 300 Sight Range 16 Terrain Scan Range 16 Terrain Scan Density 10 Evasion (%) 62 Item Schematics ----------------- None Robot Schematics ------------------ None Fabricated ------------ Nothing Alien Tech Used ----------------- None Achievements -------------- None Challenges ------------ None Game ------ Seed EncryptedSpreadDerivative Manual? 0 Play Time 00:30:02 Cumulative 27.3 hours Start 2024.04.09 @ 02:10:00 End 2024.04.09 @ 02:36:55 Sessions 1 Manual Loads 0 Difficulty Rogue Special Mode None Game No. 23 Rogue 23 Adventurer 0 Explorer 0 Win Type - Total 0 Types 0/0/0/0/0/0/0/0/0 Lore% 23 Gallery% 29 Achievement% 22 Wizard Run 0 Options --------- Layout 0 ASCII 0 Keyboard 0 Movement Mouse Keybinds 0 Fullscreen 1 Font 24/Smallcaps Map View 183x50 Zoom Use 0% Tactical HUD 1 Map Filters NONE Filters NONE Steam 0 RUN: 06722810-ce2e-4477-b7ca-1b3ecc533406